lending/lending_fUSD_20260209
["ID","MTS","AMOUNT","RATE_DAILY","PERIOD"]
[404833692,1770607838730,-1994.87689347,0.000344,2]
[404833693,1770607838739,-1042.66,0.00034463,14]
[404833694,1770607838749,-489.95,0.000345,2]
[404833695,1770607838758,-729.30837507,0.00034624,2]
[404833696,1770607838768,-1042.66,0.00034737,14]
[404833697,1770607838777,-150.0,0.00034904,2]
[404833698,1770607838786,-1042.66,0.00035011,14]
[404833699,1770607838796,-1042.66,0.00035285,14]
[404833700,1770607838805,-1042.66,0.00035559,14]
[404833701,1770607838814,-678.48627921,0.0003561,2]
[404833702,1770607838823,-1042.66,0.00035833,14]
[404833703,1770607838833,-729.30837507,0.00035893,2]
[404833704,1770607838843,-1042.66,0.00036107,14]
[404833705,1770607838852,-323.26075896,0.00036129,2]
[404833706,1770607838862,-223.12649593,0.00036224,7]
[404833707,1770607838871,-1042.68268303,0.00036381,14]
[404833708,1770607838880,-2002.226,0.00036443,45]
[404833709,1770607838890,-177.659,0.00036443,45]
[404833710,1770607838899,-150.0,0.00036649,2]
[404833711,1770607838909,-57286.12636477,0.00036888,60]
[404833712,1770607838919,-1225.47,0.0003716,2]
[404833713,1770607838928,-729.30837507,0.00037162,2]
[404833714,1770607838939,-1852.42,0.000378,2]
[404833715,1770607838948,-250.0,0.00038356,120]
[404833716,1770607838958,-250.0,0.00038356,120]
[404833717,1770607838969,-250.0,0.00038356,120]
[404833718,1770607838979,-250.0,0.00038356,120]
[404833719,1770607838989,-250.0,0.00038356,120]
[404833720,1770607838998,-250.0,0.00038356,120]
[404833721,1770607839009,-250.0,0.00038356,120]
[404833722,1770607839019,-169.800804,0.00038356,120]
[404833723,1770607839029,-729.30837507,0.00038431,2]
[404833724,1770607839039,-150.0,0.00038482,2]
[404833725,1770607839049,-398.53,0.00038768,2]
[404833726,1770607839059,-1200.80286715,0.0003878,30]
[404833727,1770607839069,-1200.80286715,0.0003878,30]
[404833728,1770607839078,-500.0,0.0003878,60]
[404833729,1770607839088,-506.382575,0.0003878,60]
[404833730,1770607839098,-500.0,0.0003878,60]
[404833731,1770607839107,-500.0,0.0003878,30]
[404833732,1770607839117,-500.0,0.0003878,30]
[404833733,1770607839126,-500.0,0.0003878,30]
[404833734,1770607839135,-500.0,0.0003878,30]
[404833735,1770607839144,-500.0,0.0003878,30]
[404833736,1770607839153,-500.0,0.0003878,30]
[404833737,1770607839162,-500.0,0.0003878,30]
[404833738,1770607839171,-500.0,0.0003878,30]
[404833739,1770607839181,-500.0,0.0003878,30]
[404833740,1770607839190,-281.16658978,0.0003878,30]
[404833741,1770607839199,-1743.9128987,0.00038831,2]
[404833742,1770607839210,-929.6156132,0.00038831,2]
[404833743,1770607839220,-1274.66618866,0.00038831,2]
[404833744,1770607839229,-222.29582107,0.00038831,2]
[404833745,1770607839240,-1295.73873761,0.00039,120]
[404833746,1770607839249,-285.67,0.00039191,14]
[404833747,1770607839259,-5371.0,0.000392,5]
[404833748,1770607839269,-729.30837507,0.00039699,2]
[404833749,1770607839278,-489.95,0.000399,30]
[404833750,1770607839288,-150.0,0.00039999,7]
[404833751,1770607839297,-150.0,0.00039999,7]
[404833752,1770607839306,-150.0,0.00039999,7]
[404833753,1770607839315,-150.0,0.00039999,7]
[404833754,1770607839324,-150.0,0.00039999,7]
[404833755,1770607839333,-150.0,0.00039999,7]
[404833756,1770607839342,-150.0,0.00039999,7]
[404833757,1770607839351,-274.49,0.0004,120]
[404833758,1770607839360,-550.23,0.0004,120]
[404833759,1770607839369,-203.47,0.0004,120]
[404833760,1770607839378,-152.0,0.0004,120]
[404833761,1770607839388,-500.0,0.0004,5]
[404833762,1770607839399,-500.0,0.0004,5]
[404833763,1770607839409,-500.0,0.0004,5]
[404833764,1770607839420,-500.0,0.0004,2]
[404833765,1770607839429,-500.0,0.0004,5]
[404833766,1770607839438,-500.0,0.0004,5]
[404833767,1770607839448,-500.0,0.0004,5]
[404833768,1770607839458,-162.65190433,0.0004,5]
[404833769,1770607839468,-500.0,0.0004,5]
[404833770,1770607839477,-500.0,0.0004,5]
[404833771,1770607839486,-5000.0,0.0004,3]
[404833772,1770607839497,-150.63279502,0.0004,30]
[404833773,1770607839507,-10893.3127493,0.0004,120]
[404833774,1770607839518,-500.0,0.0004,5]
[404833775,1770607839527,-170.50126432,0.0004,5]
[404833776,1770607839538,-500.78823516,0.0004,5]
[404833777,1770607839547,-500.0,0.0004,5]
[404833778,1770607839556,-500.0,0.0004,5]
[404833779,1770607839565,-500.0,0.0004,5]
[404833780,1770607839575,-500.0,0.0004,5]
[404833781,1770607839583,-460.71375774,0.0004,5]
[404833782,1770607839593,-500.0,0.0004,5]
[404833783,1770607839604,-500.30350429,0.0004,5]
[404833784,1770607839615,-500.0,0.0004,5]
[404833785,1770607839625,-166.95992965,0.0004,5]
[404833786,1770607839634,-500.0,0.0004,5]
[404833787,1770607839644,-500.0,0.0004,2]
[404833788,1770607839653,-500.0,0.0004,5]
[404833789,1770607839664,-245.6057209,0.0004,5]
[404833790,1770607839674,-500.0,0.0004,5]
[404833791,1770607839684,-500.0,0.0004,5]
[404833792,1770607839694,-500.0,0.0004,5]
[404833793,1770607839705,-260.08886255,0.0004,5]
[404833794,1770607839715,-500.0,0.0004,5]
[404833795,1770607839725,-500.0,0.0004,5]
[404833796,1770607839734,-500.0,0.0004,5]
[404833797,1770607839743,-505.23042073,0.00040002,2]
[404833798,1770607839752,-500.0,0.00040448,2]
[404833799,1770607839761,-150.0,0.00040493,7]
[404833800,1770607839770,-1000.69918339,0.00040548,5]
[404833801,1770607839779,-1000.0,0.00040548,5]
[404833802,1770607839788,-1005.82893867,0.00040548,5]
[404833803,1770607839797,-1000.0,0.00040548,2]
[404833804,1770607839806,-1000.66593252,0.00040548,5]
[404833805,1770607839815,-227.66530803,0.00040548,5]
[404833806,1770607839824,-1000.0,0.00040548,5]
[404833807,1770607839833,-1000.0,0.00040548,5]
[404833808,1770607839842,-1000.0,0.00040548,5]
[404833809,1770607839851,-157.67351188,0.00040548,5]
[404833810,1770607839860,-501.05560458,0.00040548,5]
[404833811,1770607839869,-1000.0,0.00040548,5]
[404833812,1770607839879,-1000.0,0.00040548,5]
[404833813,1770607839888,-1000.0,0.00040548,5]
[404833814,1770607839897,-1002.54234669,0.00040548,5]
[404833815,1770607839906,-501.47083353,0.00040548,5]
[404833816,1770607839915,-1000.0,0.00040548,5]
[404833817,1770607839924,-1005.4959813,0.00040548,2]
[404833818,1770607839934,-431.50854257,0.00040548,5]
[404833819,1770607839943,-208.13539422,0.00040548,5]
[404833820,1770607839953,-1000.0,0.00040548,5]
[404833821,1770607839962,-500.48740819,0.00040548,5]
[404833822,1770607839973,-1002.44563879,0.00040548,5]
[404833823,1770607839982,-1000.0,0.00040548,5]
[404833824,1770607839992,-1003.87713345,0.00040548,5]
[404833825,1770607840001,-300.0,0.00040548,2]
[404833826,1770607840011,-729.30837507,0.00040968,2]
[404833827,1770607840020,-150.0,0.00040986,7]
[404833828,1770607840029,-567.032031,0.00041,30]
[404833829,1770607840039,-152.0,0.00041,120]
[404833830,1770607840048,-239.38,0.00041096,120]
[404833831,1770607840057,-234.34,0.00041096,120]
[404833832,1770607840067,-1502.31857723,0.00041096,10]
[404833833,1770607840076,-653.13192661,0.00041096,2]
[404833834,1770607840086,-1001.70650637,0.00041096,10]
[404833835,1770607840095,-1002.57509796,0.00041096,10]
[404833836,1770607840104,-501.26387074,0.00041096,10]
[404833837,1770607840113,-1500.0,0.00041096,10]
[404833838,1770607840123,-1500.0,0.00041096,10]
[404833839,1770607840132,-1500.0,0.00041096,10]
[404833840,1770607840144,-425.72512087,0.00041096,10]
[404833841,1770607840153,-513.58819273,0.00041096,10]
[404833842,1770607840164,-1500.0,0.00041096,10]
[404833843,1770607840173,-168.0,0.00041266,7]
[404833844,1770607840182,-9141.37,0.00041439,2]
[404833845,1770607840192,-150.0,0.0004148,30]
[404833846,1770607840203,-150.0,0.0004148,30]
[404833847,1770607840214,-150.0,0.0004148,30]
[404833848,1770607840224,-2000.0,0.00041644,10]
[404833849,1770607840233,-475.51068713,0.00041644,10]
[404833850,1770607840242,-453.97092283,0.00041644,10]
[404833851,1770607840252,-2000.0,0.00041644,10]
[404833852,1770607840263,-3256.0,0.00041715,2]
[404833853,1770607840273,-618.857,0.00041715,2]
[404833854,1770607840285,-285.67,0.00041773,14]
[404833855,1770607840296,-150.0,0.00041974,30]
[404833856,1770607840305,-152.0,0.00042,120]
[404833857,1770607840315,-151.38916921,0.00042,30]
[404833858,1770607840326,-2500.0,0.00042192,10]
[404833859,1770607840337,-2512.94110038,0.00042192,10]
[404833860,1770607840348,-489.95,0.000422,30]
[404833861,1770607840357,-150.0,0.00042221,30]
[404833862,1770607840367,-150.0,0.00042221,30]
[404833863,1770607840376,-729.30837507,0.00042237,2]
[404833864,1770607840386,-5000.0,0.00042466,120]
[404833865,1770607840396,-150.0,0.00042468,30]
[404833866,1770607840406,-2164.13072908,0.000425,120]
[404833867,1770607840415,-157.19768788,0.000425,120]
[404833868,1770607840425,-5648.3,0.00042546,120]
[404833869,1770607840436,-3530.19,0.00042546,30]
[404833870,1770607840447,-168.0,0.00042637,2]
[404833871,1770607840462,-800.0,0.0004274,7]
[404833872,1770607840471,-462.60584154,0.0004274,10]
[404833873,1770607840480,-3295.0486665,0.000428,30]
[404833874,1770607840489,-15165.49423038,0.000428,7]
[404833875,1770607840499,-1685.14,0.00042881,2]
[404833876,1770607840508,-259.57383222,0.000429,30]
[404833877,1770607840517,-150.0,0.00042962,30]
[404833878,1770607840527,-150.0,0.00042962,30]
[404833879,1770607840538,-150.0,0.00042962,30]
[404833880,1770607840547,-456.1643411,0.00042998,30]
[404833881,1770607840556,-2031.0,0.00043,120]
[404833882,1770607840565,-152.0,0.00043,120]
[404833883,1770607840574,-164.7,0.00043,60]
[404833884,1770607840583,-240.75130676,0.00043,120]
[404833885,1770607840592,-48974.83269297,0.00043,2]
[404833886,1770607840606,-162.46228869,0.00043,30]
[404833887,1770607840615,-695.18135714,0.00043,120]
[404833888,1770607840626,-1000.0,0.00043014,30]
[404833889,1770607840635,-1405.99823324,0.000431,120]
[404833890,1770607840644,-2292.93388928,0.00043108,2]
[404833891,1770607840653,-1521.40464906,0.0004313,30]
[404833892,1770607840662,-168.0,0.00043145,7]
[404833893,1770607840671,-1033.7075099,0.000432,120]
[404833894,1770607840679,-8419.51515041,0.0004321,120]
[404833895,1770607840688,-461.21737247,0.00043219,120]
[404833896,1770607840697,-756.862972,0.00043221,30]
[404833897,1770607840705,-168.0,0.00043269,7]
[404833898,1770607840714,-150.0,0.0004328,120]
[404833899,1770607840725,-1000.0,0.00043288,30]
[404833900,1770607840735,-1900.0,0.000434,15]
[404833901,1770607840744,-726.24228816,0.000434,30]
[404833902,1770607840753,-158.01,0.00043443,2]
[404833903,1770607840762,-150.0,0.00043455,30]
[404833904,1770607840771,-1900.0,0.000435,15]
[404833905,1770607840780,-729.30837507,0.00043506,2]
[404833906,1770607840789,-1000.0,0.00043562,30]
[404833907,1770607840799,-168.0,0.00043572,2]
[404833908,1770607840807,-1900.0,0.000436,15]
[404833909,1770607840817,-359.84319534,0.0004362,30]
[404833910,1770607840826,-168.0,0.00043661,120]
[404833911,1770607840835,-1041.97750413,0.0004369,120]
[404833912,1770607840844,-1900.0,0.000437,15]
[404833913,1770607840853,-316.68272132,0.000437,120]
[404833914,1770607840862,-500.0,0.00043773,10]
[404833915,1770607840871,-449.68415735,0.00043773,10]
[404833916,1770607840880,-500.0,0.00043773,10]
[404833917,1770607840890,-500.0,0.00043773,10]
[404833918,1770607840899,-1000.0,0.000438,30]
[404833919,1770607840909,-2000.0,0.000438,2]
[404833920,1770607840918,-489.95,0.000438,30]
[404833921,1770607840927,-2312.0,0.000438,15]
[404833922,1770607840937,-237.39446606,0.000438,120]
[404833923,1770607840946,-1999.0,0.00043835,120]
[404833924,1770607840957,-1000.0,0.00043836,30]
[404833925,1770607840967,-216.76727611,0.00043836,120]
[404833926,1770607840976,-1010.73446972,0.00043884,120]
[404833927,1770607840985,-920.82030181,0.00043946,120]
[404833928,1770607840994,-150.0,0.00043949,30]
[404833929,1770607841004,-1089.27412783,0.00043987,120]
[404833930,1770607841013,-152.0,0.00044,120]
[404833931,1770607841023,-3180.38072611,0.00044,110]
[404833932,1770607841032,-247.31803698,0.00044,120]
[404833933,1770607841042,-13726.50808153,0.00044,4]
[404833934,1770607841052,-168.0,0.00044053,2]
[404833935,1770607841062,-500.0,0.00044109,120]
[404833936,1770607841071,-500.0,0.00044109,120]
[404833937,1770607841080,-500.0,0.00044109,120]
[404833938,1770607841089,-500.0,0.00044109,120]
[404833939,1770607841098,-500.0,0.00044109,120]
[404833940,1770607841108,-500.0,0.00044109,120]
[404833941,1770607841117,-500.0,0.00044109,120]
[404833942,1770607841127,-500.0,0.00044109,120]
[404833943,1770607841136,-500.0,0.00044109,120]
[404833944,1770607841155,-500.0,0.00044109,120]
[404833945,1770607841165,-500.0,0.00044109,120]
[404833946,1770607841174,-500.0,0.00044109,120]
[404833947,1770607841183,-500.0,0.00044109,120]
[404833948,1770607841192,-500.0,0.00044109,120]
[404833949,1770607841201,-500.0,0.00044109,120]
[404833950,1770607841210,-500.0,0.00044109,120]
[404833951,1770607841220,-500.0,0.00044109,120]
[404833952,1770607841229,-500.0,0.00044109,120]
[404833953,1770607841239,-500.0,0.00044109,120]
[404833954,1770607841248,-500.0,0.00044109,120]
[404833955,1770607841257,-500.0,0.00044109,120]
[404833956,1770607841267,-500.0,0.00044109,120]
[404833957,1770607841276,-500.0,0.00044109,120]
[404833958,1770607841286,-316.02714742,0.00044109,120]
[404833959,1770607841295,-200.99075757,0.00044109,120]
[404833960,1770607841303,-1000.0,0.0004411,30]
[404833961,1770607841313,-168.0,0.0004411,2]
[404833962,1770607841322,-706.03,0.00044158,120]
[404833963,1770607841331,-168.0,0.00044162,2]
[404833964,1770607841340,-2000.0,0.00044221,3]
[404833965,1770607841350,-2000.0,0.00044221,3]
[404833966,1770607841360,-500.0,0.00044253,120]
[404833967,1770607841369,-3000.0,0.000443,7]
[404833968,1770607841379,-15116.7777341,0.00044309,15]
[404833969,1770607841390,-5688.0,0.00044319,7]
[404833970,1770607841400,-1000.0,0.00044321,10]
[404833971,1770607841410,-1000.0,0.00044321,10]
[404833972,1770607841420,-1000.0,0.00044321,10]
[404833973,1770607841430,-168.0,0.00044335,2]
[404833974,1770607841440,-433.48116845,0.00044341,120]
[404833975,1770607841451,-1000.0,0.00044343,2]
[404833976,1770607841461,-4330.0074,0.00044343,2]
[404833977,1770607841471,-918.0,0.00044349,2]
[404833978,1770607841481,-6363.11402013,0.00044353,2]
[404833979,1770607841491,-154.6549543,0.00044355,120]
[404833980,1770607841504,-1424.62144857,0.00044355,2]
[404833981,1770607841514,-300.0,0.00044355,30]
[404833982,1770607841525,-666.0,0.00044355,30]
[404833983,1770607841538,-904.20678449,0.00044355,2]
[404833984,1770607841550,-500.0,0.00044356,120]
[404833985,1770607841560,-176.1819659,0.00044356,120]
[404833986,1770607841570,-500.0,0.00044356,120]
[404833987,1770607841581,-500.0,0.00044356,120]
[404833988,1770607841591,-524.32976139,0.00044356,120]
[404833989,1770607841602,-380.0035249,0.00044356,120]
[404833990,1770607841613,-500.0,0.00044356,120]
[404833991,1770607841623,-486.56760562,0.00044356,120]
[404833992,1770607841632,-200.00767164,0.00044356,120]
[404833993,1770607841643,-500.0,0.00044356,120]
[404833994,1770607841655,-500.0,0.00044356,120]
[404833995,1770607841668,-611.67541249,0.00044356,120]
[404833996,1770607841678,-500.0,0.00044356,120]
[404833997,1770607841689,-500.0,0.00044356,120]
[404833998,1770607841702,-500.0,0.00044356,120]
[404833999,1770607841713,-529.51234588,0.00044356,120]
[404834000,1770607841723,-500.0,0.00044356,120]
[404834001,1770607841733,-574.40380828,0.00044356,120]
[404834002,1770607841742,-500.0,0.00044356,120]
[404834003,1770607841751,-627.06702371,0.00044356,120]
[404834004,1770607841761,-500.0,0.00044356,120]
[404834005,1770607841971,-500.0,0.00044356,120]
[404834006,1770607842000,-581.61868741,0.00044356,120]
[404834007,1770607842010,-500.0,0.00044356,120]
[404834008,1770607842023,-500.0,0.00044356,120]
[404834009,1770607842033,-500.0,0.00044356,120]
[404834010,1770607842043,-500.0,0.00044356,120]
[404834011,1770607842052,-500.0,0.00044356,120]
[404834012,1770607842061,-500.0,0.00044356,120]
[404834013,1770607842071,-500.0,0.00044356,120]
[404834014,1770607842080,-500.0,0.00044356,120]
[404834015,1770607842089,-500.0,0.00044356,120]
[404834016,1770607842099,-500.0,0.00044356,120]
[404834017,1770607842108,-500.0,0.00044356,120]
[404834018,1770607842118,-500.0,0.00044356,120]
[404834019,1770607842127,-500.0,0.00044356,120]
[404834020,1770607842137,-500.0,0.00044356,120]
[404834021,1770607842149,-500.0,0.00044356,120]
[404834022,1770607842158,-500.0,0.00044356,120]
[404834023,1770607842167,-500.0,0.00044356,120]
[404834024,1770607842177,-500.0,0.00044356,120]
[404834025,1770607842188,-500.0,0.00044356,120]
[404834026,1770607842198,-500.0,0.00044356,120]
[404834027,1770607842208,-500.0,0.00044356,120]
[404834028,1770607842220,-500.0,0.00044356,120]
[404834029,1770607842230,-500.0,0.00044356,120]
[404834030,1770607842239,-500.0,0.00044356,120]
[404834031,1770607842249,-620.60574358,0.00044356,120]
[404834032,1770607842259,-500.0,0.00044356,120]
[404834033,1770607842268,-500.0,0.00044356,120]
[404834034,1770607842278,-500.0,0.00044356,120]
[404834035,1770607842287,-500.0,0.00044356,120]
[404834036,1770607842298,-500.0,0.00044356,120]
[404834037,1770607842308,-500.0,0.00044356,120]
[404834038,1770607842317,-500.0,0.00044356,120]
[404834039,1770607842328,-500.0,0.00044356,120]
[404834040,1770607842337,-500.0,0.00044356,120]
[404834041,1770607842346,-500.0,0.00044356,120]
[404834042,1770607842355,-500.0,0.00044356,120]
[404834043,1770607842364,-500.0,0.00044356,120]
[404834044,1770607842374,-500.0,0.00044356,120]
[404834045,1770607842383,-161.75749419,0.00044356,120]
[404834046,1770607842392,-500.0,0.00044356,120]
[404834047,1770607842402,-528.67363321,0.00044356,120]
[404834048,1770607842411,-497.78814959,0.00044356,120]
[404834049,1770607842423,-531.20523922,0.00044356,120]
[404834050,1770607842432,-500.0,0.00044356,120]
[404834051,1770607842441,-500.0,0.00044356,120]
[404834052,1770607842450,-500.0,0.00044356,120]
[404834053,1770607842460,-500.0,0.00044356,120]
[404834054,1770607842469,-187.27535965,0.00044356,120]
[404834055,1770607842478,-500.0,0.00044356,120]
[404834056,1770607842488,-500.0,0.00044356,120]
[404834057,1770607842497,-500.0,0.00044356,120]
[404834058,1770607842506,-500.0,0.00044356,120]
[404834059,1770607842515,-500.0,0.00044356,120]
[404834060,1770607842524,-500.0,0.00044356,120]
[404834061,1770607842536,-290.52461017,0.00044356,120]
[404834062,1770607842545,-500.0,0.00044356,120]
[404834063,1770607842554,-500.0,0.00044356,120]
[404834064,1770607842563,-534.87321343,0.00044356,120]
[404834065,1770607842572,-500.0,0.00044356,30]
[404834066,1770607842582,-500.0,0.00044356,30]
[404834067,1770607842591,-500.0,0.00044356,30]
[404834068,1770607842600,-500.0,0.00044356,30]
[404834069,1770607842611,-500.0,0.00044356,30]
[404834070,1770607842620,-500.0,0.00044356,30]
[404834071,1770607842629,-500.0,0.00044356,30]
[404834072,1770607842638,-500.0,0.00044356,30]
[404834073,1770607842648,-500.0,0.00044356,30]
[404834074,1770607842658,-500.0,0.00044356,30]
[404834075,1770607842667,-500.0,0.00044356,30]
[404834076,1770607842676,-500.0,0.00044356,30]
[404834077,1770607842685,-500.0,0.00044356,30]
[404834078,1770607842694,-470.0,0.00044356,30]
[404834079,1770607842704,-500.0,0.00044356,120]
[404834080,1770607842713,-191.33509017,0.00044356,120]
[404834081,1770607842722,-500.0,0.00044356,120]
[404834082,1770607842732,-500.0,0.00044356,120]
[404834083,1770607842742,-540.09835616,0.00044356,120]
[404834084,1770607842750,-457.32971221,0.00044356,120]
[404834085,1770607842760,-500.0,0.00044356,120]
[404834086,1770607842769,-501.26111484,0.00044356,120]
[404834087,1770607842779,-510.12889306,0.00044356,120]
[404834088,1770607842788,-198.38433226,0.00044356,120]
[404834089,1770607842797,-507.36557221,0.00044356,120]
[404834090,1770607842822,-500.0,0.00044356,120]
[404834091,1770607842844,-500.0,0.00044356,120]
[404834092,1770607842856,-500.0,0.00044356,120]
[404834093,1770607842868,-500.0,0.00044356,120]
[404834094,1770607842877,-500.0,0.00044356,120]
[404834095,1770607842889,-500.0,0.00044356,120]
[404834096,1770607842900,-504.59391265,0.00044356,120]
[404834097,1770607842912,-500.0,0.00044356,120]
[404834098,1770607842923,-500.0,0.00044356,120]
[404834099,1770607842932,-538.95141637,0.00044356,120]
[404834100,1770607842944,-500.0,0.00044356,120]
[404834101,1770607842954,-500.0,0.00044356,120]
[404834102,1770607842965,-500.0,0.00044356,120]
[404834103,1770607842976,-266.56003412,0.00044356,120]
[404834104,1770607842987,-500.0,0.00044356,120]
[404834105,1770607842998,-520.02669912,0.00044356,120]
[404834106,1770607843008,-500.0,0.00044356,120]
[404834107,1770607843019,-500.0,0.00044356,120]
[404834108,1770607843030,-500.0,0.00044356,120]
[404834109,1770607843040,-500.0,0.00044356,120]
[404834110,1770607843049,-543.03757559,0.00044356,120]
[404834111,1770607843059,-500.0,0.00044356,120]
[404834112,1770607843069,-500.0,0.00044356,120]
[404834113,1770607843079,-500.0,0.00044356,120]
[404834114,1770607843088,-500.0,0.00044356,120]
[404834115,1770607843099,-500.0,0.00044356,120]
[404834116,1770607843109,-500.0,0.00044356,120]
[404834117,1770607843118,-391.37619731,0.00044356,120]
[404834118,1770607843128,-500.0,0.00044356,120]
[404834119,1770607843137,-522.06751691,0.00044356,120]
[404834120,1770607843147,-500.0,0.00044356,120]
[404834121,1770607843156,-500.0,0.00044356,120]
[404834122,1770607843165,-592.25912697,0.00044356,120]
[404834123,1770607843175,-800.0,0.00044356,120]
[404834124,1770607843184,-800.0,0.00044356,120]
[404834125,1770607843194,-800.0,0.00044356,120]
[404834126,1770607843203,-503.7730037,0.00044356,120]
[404834127,1770607843213,-500.0,0.00044356,120]
[404834128,1770607843222,-568.08543408,0.00044356,120]
[404834129,1770607843232,-515.80523283,0.00044356,120]
[404834130,1770607843243,-513.79659184,0.00044356,120]
[404834131,1770607843252,-513.62414494,0.00044356,120]
[404834132,1770607843262,-522.13261668,0.00044356,120]
[404834133,1770607843271,-500.0,0.00044356,120]
[404834134,1770607843280,-556.59140331,0.00044356,120]
[404834135,1770607843289,-500.0,0.00044356,120]
[404834136,1770607843298,-532.88339383,0.00044356,120]
[404834137,1770607843307,-509.10136495,0.00044356,120]
[404834138,1770607843317,-500.0,0.00044356,120]
[404834139,1770607843326,-492.21244989,0.00044356,120]
[404834140,1770607843335,-500.0,0.00044356,120]
[404834141,1770607843344,-522.00241845,0.00044356,120]
[404834142,1770607843354,-500.0,0.00044356,120]
[404834143,1770607843363,-500.0,0.00044356,120]
[404834144,1770607843372,-500.0,0.00044356,120]
[404834145,1770607843381,-500.0,0.00044356,120]
[404834146,1770607843390,-500.0,0.00044356,120]
[404834147,1770607843399,-500.0,0.00044356,120]
[404834148,1770607843409,-500.0,0.00044356,120]
[404834149,1770607843418,-500.0,0.00044356,120]
[404834150,1770607843427,-500.0,0.00044356,120]
[404834151,1770607843436,-257.60916353,0.00044356,120]
[404834152,1770607843445,-500.0,0.00044356,120]
[404834153,1770607843454,-500.0,0.00044356,120]
[404834154,1770607843463,-500.0,0.00044356,120]
[404834155,1770607843472,-452.96532426,0.00044356,120]
[404834156,1770607843483,-500.0,0.00044356,120]
[404834157,1770607843492,-523.17614699,0.00044356,120]
[404834158,1770607843501,-500.0,0.00044356,120]
[404834159,1770607843511,-500.0,0.00044356,120]
[404834160,1770607843521,-500.0,0.00044356,120]
[404834161,1770607843534,-500.0,0.00044356,120]
[404834162,1770607843543,-518.04526449,0.00044356,120]
[404834163,1770607843555,-512.92833578,0.00044356,120]
[404834164,1770607843566,-511.76632699,0.00044356,120]
[404834165,1770607843577,-517.91073619,0.00044356,120]
[404834166,1770607843588,-583.57083629,0.00044356,120]
[404834167,1770607843598,-506.07577273,0.00044356,120]
[404834168,1770607843609,-506.94587743,0.00044356,120]
[404834169,1770607843618,-500.0,0.00044356,120]
[404834170,1770607843627,-512.35847391,0.00044356,120]
[404834171,1770607843638,-500.0,0.00044356,120]
[404834172,1770607843649,-500.0,0.00044356,120]
[404834173,1770607843658,-503.74811147,0.00044356,120]
[404834174,1770607843667,-500.0,0.00044356,120]
[404834175,1770607843676,-500.0,0.00044356,120]
[404834176,1770607843686,-500.0,0.00044356,120]
[404834177,1770607843702,-500.0,0.00044356,120]
[404834178,1770607843716,-500.0,0.00044356,120]
[404834179,1770607843727,-500.0,0.00044356,120]
[404834180,1770607843736,-503.19999691,0.00044356,120]
[404834181,1770607843747,-500.0,0.00044356,120]
[404834182,1770607843757,-500.0,0.00044356,120]
[404834183,1770607843766,-500.0,0.00044356,120]
[404834184,1770607843777,-500.0,0.00044356,120]
[404834185,1770607843791,-524.10998044,0.00044356,120]
[404834186,1770607843805,-500.0,0.00044356,120]
[404834187,1770607843823,-500.0,0.00044356,120]
[404834188,1770607843834,-500.0,0.00044356,120]
[404834189,1770607843844,-500.0,0.00044356,120]
[404834190,1770607843854,-509.38194034,0.00044356,120]
[404834191,1770607843863,-500.0,0.00044356,120]